[Event "Gibraltar Challengers B 2019"]
[Site "Caleta"]
[Date "2019.01.27"]
[Round "2"]
[White "Bryn, Askild"]
[Black "Jordan Martinez, Miguel"]
[Result "0-1"]
[ECO "C11"]
[WhiteElo "2010"]
[BlackElo "2142"]
[Annotator "ChessBase"]
[PlyCount "121"]
[EventDate "2019.01.18"]
[EventType "swiss"]
[EventCountry "GGB"]
[SourceTitle "playchess.com"]
[Source "ChessBase"]
[SourceQuality "1"]
[TimeControl "6600+10"]

1. e4 {[%emt 0:06:22]} e6 {[%emt 0:00:12]} 2. d4 {[%emt 0:00:11]} d5 {[%emt 0:00:05]} 3. Nc3 {[%emt 0:00:04]} Nf6 {[%emt 0:00:35]} 4. e5 {[%emt 0:00:09]} Nfd7 {[%emt 0:00:06]} 5. f4 {[%emt 0:00:12]} c5 {[%emt 0:00:05]} 6. Nf3 {[%emt 0:00:05]} Nc6 {[%emt 0:00:17]} 7. Ne2 {[%emt 0:01:38]} Be7 {[%emt 0:02:07]} 8. c3 {[%emt 0:00:15]} O-O {[%emt 0:04:48]} 9. h4 {[%emt 0:07:40]} f6 {[%emt 0:02:50]} 10. g3 {[%emt 0:04:28]} cxd4 {[%emt 0:08:49]} 11. cxd4 {[%emt 0:02:41]} fxe5 {[%emt 0:01:15]} 12. Bh3 {[%emt 0:11:42]} e4 {[%emt 0:32:01]} 13. Bxe6+ {[%emt 0:00:48]} Kh8 {[%emt 0:00:06]} 14. Ng5 {[%emt 0:01:29]} Bb4+ {[%emt 0:04:28]} 15. Kf1 {[%emt 0:09:33]} Nf6 {[%emt 0:00:05]} 16. a3 {[%emt 0:00:46]} Bd6 {[%emt 0:01:54]} 17. Kg2 {[%emt 0:05:11]} Qe7 {[%emt 0:01:51]} 18. f5 {[%emt 0:03:26]} Nd8 {[%emt 0:02:48]} 19. Bxc8 {[%emt 0:00:37]} Rxc8 {[%emt 0:00:04]} 20. Nf4 {[%emt 0:00:20]} Qc7 {[%emt 0:08:16]} 21. Kh3 {[%emt 0:22:09]} Bxf4 {[%emt 0:05:30]} 22. Bxf4 {[%emt 0:00:24]} Qd7 {[%emt 0:00:02]} 23. Kg2 {[%emt 0:12:09]} Qxf5 {[%emt 0:01:01]} 24. Rf1 {[%emt 0:00:23]} Ng4 {[%emt 0:04:23]} 25. Qb3 {[%emt 0:07:36]} Qd7 {[%emt 0:07:08]} 26. Rac1 {[%emt 0:01:11]} Ne6 {[%emt 0:02:35]} 27. Nxe6 {[%emt 0:00:37]} Qxe6 {[%emt 0:00:23]} 28. Rxc8 {[%emt 0:03:37]} Rxc8 {[%emt 0:00:37]} 29. Qxb7 {[%emt 0:02:17]} Rc2+ {[%emt 0:11:37]} 30. Kg1 {[%emt 0:00:06]} h6 {[%emt 0:01:39]} 31. Be5 {[%emt 0:01:30]} Nxe5 {[%emt 0:01:13]} 32. Qb8+ {[%emt 0:00:09]} Kh7 {[%emt 0:00:22]} 33. Qxe5 {[%emt 0:00:06]} Qxe5 {[%emt 0:01:29]} 34. dxe5 {[%emt 0:00:05]} d4 {[%emt 0:00:59]} 35. e6 {[%emt 0:00:22]} Rc6 {[%emt 0:00:17]} 36. Rf7 {[%emt 0:01:07]} Rxe6 {[%emt 0:00:08]} 37. Rxa7 {[%emt 0:00:10]} d3 {[%emt 0:00:53]} 38. Rd7 {[%emt 0:01:57]} Rf6 {[%emt 0:01:22]} 39. Kg2 {[%emt 0:00:44]} Rc6 {[%emt 0:00:41]} 40. Rd4 {[%emt 0:01:07]} Rc2+ {[%emt 0:00:09]} 41. Kf1 {[%emt 0:00:05]} Re2 {[%emt 0:01:14]} 42. b4 {[%emt 0:00:02]} Kg6 {[%emt 0:00:06]} 43. b5 {[%emt 0:00:14]} Kf5 {[%emt 0:00:01]} 44. b6 {[%emt 0:00:03]} Rb2 {[%emt 0:00:11]} 45. Rb4 {[%emt 0:00:04]} Rh2 {[%emt 0:00:20]} 46. b7 {[%emt 0:00:42]} d2 {[%emt 0:00:05]} 47. Rd4 {[%emt 0:00:29]} e3 {[%emt 0:00:23]} 48. Kg1 {[%emt 0:00:20]} Rh1+ {[%emt 0:00:16]} 49. Kxh1 {[%emt 0:00:04]} e2 {[%emt 0:00:01]} 50. b8=Q {[%emt 0:00:04]} e1=Q+ {[%emt 0:00:02]} 51. Kg2 {[%emt 0:00:08]} Qe2+ {[%emt 0:00:03]} 52. Kg1 {[%emt 0:00:46]} Qe3+ {[%emt 0:00:02]} 53. Kf1 {[%emt 0:00:02]} Qxd4 {[%emt 0:00:14]} 54. Qb5+ {[%emt 0:00:16]} Kg4 {[%emt 0:00:23]} 55. Qe2+ {[%emt 0:00:16]} Kxg3 {[%emt 0:00:11]} 56. Qg2+ {[%emt 0:00:07]} Kxh4 {[%emt 0:00:05]} 57. Qh2+ {[%emt 0:00:01]} Kg5 {[%emt 0:00:05]} 58. Qg3+ {[%emt 0:00:07]} Kf5 {[%emt 0:00:03]} 59. Qh3+ {[%emt 0:00:01]} Kg6 {[%emt 0:00:05]} 60. Qg2+ {[%emt 0:00:31]} Kh7 {[%emt 0:00:04]} 61. a4 {[%emt 0:00:27]} 0-1

[Event "Gibraltar Challengers B 2019"]
[Site "Caleta"]
[Date "2019.01.27"]
[Round "2"]
[White "Weeramantry, Sunil"]
[Black "Kandic, Milan"]
[Result "1-0"]
[ECO "C41"]
[WhiteElo "2007"]
[BlackElo "2136"]
[Annotator "NA"]
[PlyCount "75"]
[EventDate "2019.01.18"]
[EventType "swiss"]
[EventCountry "GGB"]
[SourceTitle "playchess.com"]
[Source "ChessBase"]
[SourceQuality "1"]
[TimeControl "6600+10"]

{[%evp 8,71,42,48,76,26,29,25,30,36,33,27,32767,55,32767,27,32767,32767,59,32767,32767,69,56,68,32767,64,32767,32767,32767,32767,32767,32767,32767,32767,32767,32767,32767,32767,32767,44,60,35,40,32767,32767,32767,32767,0,55,27,32767,32767,32767,32767,32767,0,577,32767,662,32767,32767,32767,32767,29986,29986,29987]} 1. e4 {[%emt 0:00:01]} d6 {[%emt 0:00:00]} 2. d4 {[%emt 0:00:08]} Nf6 {[%emt 0:00:03]} 3. Nc3 {[%emt 0:00:06]} e5 {[%emt 0:00:03]} 4. Nf3 {[%emt 0:00:10]} Nbd7 {[%emt 0:00:06]} 5. Bc4 {[%emt 0:00:09]} Be7 {[%emt 0:00:05]} 6. O-O {[%emt 0:00:14]} O-O {[%emt 0:00:07]} 7. a4 {[%emt 0:00:06]} a5 {[%emt 0:01:17]} 8. h3 {[%emt 0:00:08]} c6 {[%emt 0:00:20]} 9. Re1 {[%emt 0:00:28]} Qc7 {[%emt 0:01:47]} 10. Be3 {[%emt 0:00:17]} exd4 {[%emt 0:04:05] C41: Philidor Defence} (10... Nb6 11. Ba2 Nfd7 12. Qe2 Bf6 13. d5 Be7 14. Rad1 Nf6 15. Nd2 Bd7 16. Nc4 Nxc4 17. Qxc4 Rac8 18. Qb3 cxd5 {1-0 (80) Howell,D (2644)-Maghsoodloo,P (2584) Doha 2016}) 11. Nxd4 {[%emt 0:00:09] LiveBook: 12 Games} Nc5 {[%emt 0:03:31]} 12. Bf4 {[%emt 0:04:18]} Ne6 $146 {[%emt 0:07:38]} ({Predecessor:} 12... Be6 13. Bxe6 fxe6 14. e5 Nd5 15. Nxd5 exd5 16. Qg4 Qc8 17. e6 h5 {0-1 (38) Scherbak,Y (2148)-Gayun,D (2263) Vinnytsia 2018}) 13. Bg3 {[%emt 0:08:48]} Nxd4 {[%emt 0:11:37]} 14. Qxd4 {[%emt 0:00:34]} Nd7 {[%emt 0:07:54]} 15. Rad1 {[%emt 0:04:56]} Ne5 {[%emt 0:00:17]} 16. Bf1 {[%emt 0:00:52]} b6 {[%emt 0:31:01]} 17. Kh1 {[%emt 0:16:47]} Ba6 {[%emt 0:01:33]} 18. Bxa6 {[%emt 0:08:29]} Rxa6 {[%emt 0:00:06]} 19. f4 {[%emt 0:03:16]} Ng6 {[%emt 0:00:13]} 20. Rd3 {[%emt 0:01:44]} Ra7 {[%emt 0:03:22]} 21. Red1 {[%emt 0:00:53]} Rb7 {[%emt 0:02:25]} 22. Qf2 {[%emt 0:02:31]} Qc8 {[%emt 0:11:47]} 23. f5 {[%emt 0:17:14]} Ne5 {[%emt 0:00:09]} 24. Bxe5 {[%emt 0:00:06]} dxe5 {[%emt 0:00:03]} 25. Qd2 {[%emt 0:00:24]} h6 {[%emt 0:10:27]} 26. Ne2 {[%emt 0:05:41]} Bg5 {[%emt 0:00:33]} 27. Qc3 {[%emt 0:01:17]} Re8 {[%emt 0:00:22]} ({Black should play} 27... b5 $11) 28. Rd6 {[%emt 0:01:50]} Rc7 {[%emt 0:00:26]} 29. Qg3 {[%emt 0:01:32]} Qa6 {[%emt 0:01:31]} 30. Qg4 {[%emt 0:10:50]} Kh7 {[%emt 0:02:14]} 31. h4 {[%emt 0:05:26]} Bf6 $2 {[%emt 0:00:27]} (31... Bxh4 $1 $11 32. b3 Be7) 32. Ng3 {[%emt 0:00:31]} Rg8 {[%emt 0:01:00]} 33. Nh5 {[%emt 0:00:25]} Be7 {[%emt 0:01:35]} 34. f6 {[%emt 0:04:23]} gxf6 {[%emt 0:00:41]} 35. Nxf6+ {[%emt 0:00:18]} Bxf6 {[%emt 0:00:18]} 36. Qf5+ {[%emt 0:00:08] Double Attack} Rg6 {[%emt 0:00:31]} 37. h5 {[%emt 0:00:04]} Qc8 {[%emt 0:03:09]} 38. hxg6+ {[%emt 0:00:17]} 1-0

[Event "Gibraltar Challengers B 2019"]
[Site "Caleta"]
[Date "2019.01.27"]
[Round "2"]
[White "Vinal Gutierrez, Pedro"]
[Black "Lim, Zhuo Ren"]
[Result "0-1"]
[ECO "B23"]
[WhiteElo "1997"]
[BlackElo "2178"]
[Annotator "ChessBase"]
[PlyCount "60"]
[EventDate "2019.01.18"]
[EventType "swiss"]
[EventCountry "GGB"]
[SourceTitle "playchess.com"]
[Source "ChessBase"]
[SourceQuality "1"]
[TimeControl "6600+10"]

1. e4 {[%emt 0:00:00]} c5 {[%emt 0:00:12]} 2. Nc3 {[%emt 0:00:06]} Nc6 {[%emt 0:01:19]} 3. Bb5 {[%emt 0:00:22]} Nd4 {[%emt 0:02:06]} 4. Bc4 {[%emt 0:00:16]} e6 {[%emt 0:00:43]} 5. Nge2 {[%emt 0:01:01]} Ne7 {[%emt 0:00:26]} 6. O-O {[%emt 0:01:33]} Nec6 {[%emt 0:02:41]} 7. d3 {[%emt 0:02:31]} Be7 {[%emt 0:01:12]} 8. f4 {[%emt 0:03:27]} Na5 {[%emt 0:02:53]} 9. Be3 {[%emt 0:06:35]} Nxe2+ {[%emt 0:00:45]} 10. Qxe2 {[%emt 0:00:47]} a6 {[%emt 0:01:47]} 11. a3 {[%emt 0:03:32]} Nxc4 {[%emt 0:04:26]} 12. dxc4 {[%emt 0:00:15]} Qc7 {[%emt 0:02:15]} 13. Qg4 {[%emt 0:03:09]} O-O {[%emt 0:08:51]} 14. f5 {[%emt 0:03:47]} Bf6 {[%emt 0:05:57]} 15. Bh6 {[%emt 0:04:18]} Kh8 {[%emt 0:03:07]} 16. Bf4 {[%emt 0:04:07]} d6 {[%emt 0:03:02]} 17. Qg3 {[%emt 0:02:35]} Rd8 {[%emt 0:05:28]} 18. Rad1 {[%emt 0:01:56]} Bxc3 {[%emt 0:00:47]} 19. bxc3 {[%emt 0:00:36]} e5 {[%emt 0:00:29]} 20. Bxe5 {[%emt 0:26:16]} dxe5 {[%emt 0:00:21]} 21. Qxe5 {[%emt 0:00:15]} Qa5 {[%emt 0:04:40]} 22. Qe7 {[%emt 0:00:50]} Rg8 {[%emt 0:00:34]} 23. Qxf7 {[%emt 0:02:07]} Qxc3 {[%emt 0:00:53]} 24. f6 {[%emt 0:01:24]} gxf6 {[%emt 0:03:17]} 25. Rd3 {[%emt 0:09:42]} Qe5 {[%emt 0:01:04]} 26. Rxf6 {[%emt 0:04:31]} Qxe4 {[%emt 0:04:25]} 27. Rff3 {[%emt 0:06:03]} Qg6 {[%emt 0:03:44]} 28. g3 {[%emt 0:03:10]} Bg4 {[%emt 0:01:33]} 29. Rf4 {[%emt 0:00:46]} Qxf7 {[%emt 0:00:22]} 30. Rxf7 {[%emt 0:00:08]} Rg7 {[%emt 0:00:11]} 0-1

[Event "Gibraltar Challengers B 2019"]
[Site "Caleta"]
[Date "2019.01.27"]
[Round "2"]
[White "Skutta, Bernd"]
[Black "Berrocal Ruiz, Valentin"]
[Result "0-1"]
[ECO "A45"]
[WhiteElo "1988"]
[BlackElo "2127"]
[Annotator "NA"]
[PlyCount "66"]
[EventDate "2019.01.18"]
[EventType "swiss"]
[EventCountry "GGB"]
[SourceTitle "playchess.com"]
[Source "ChessBase"]
[SourceQuality "1"]
[TimeControl "6600+10"]

1. d4 {[%emt 0:17:33]} Nf6 {[%emt 0:00:25]} 2. Bf4 {[%emt 0:00:40]} c5 {[%emt 0:00:31]} 3. d5 {[%emt 0:00:20] A45: Trompowsky Attack} d6 {[%emt 0:00:40]} (3... b5 4. f3 e6 5. e4 c4 6. a4 exd5 7. exd5 Bb4+ 8. c3 Qe7+ 9. Qe2 Bc5 10. d6 Qxe2+ 11. Nxe2 {0-1 (50) Aronian,L (2765)-Caruana,F (2832) London 2018}) 4. Nc3 {[%emt 0:00:11]} g6 {[%emt 0:00:54]} 5. h3 {[%emt 0:00:17]} Bg7 {[%emt 0:00:23]} 6. e4 {[%emt 0:00:11]} O-O {[%emt 0:00:40]} 7. Nf3 {[%emt 0:00:02]} b5 {[%emt 0:02:56]} 8. e5 {[%emt 0:16:15]} dxe5 {[%emt 0:05:14]} 9. Bxe5 {[%emt 0:08:25]} a6 {[%emt 0:06:18]} 10. Bd3 $146 {[%emt 0:11:35]} ({Predecessor:} 10. Be2 Bb7 11. d6 exd6 12. Bxd6 Re8 13. a3 Nbd7 {½-½ (13) Pewny,U (2176)-Konietzka,L (1989) Ruhrgebiet 2004}) 10... Nbd7 {[%emt 0:05:31]} 11. Bh2 {[%emt 0:03:06]} Nb6 {[%emt 0:03:49]} 12. O-O {[%emt 0:08:43]} c4 {[%emt 0:14:10]} 13. Be2 {[%emt 0:03:01]} Nbxd5 {[%emt 0:11:54]} 14. Nxd5 {[%emt 0:01:00]} Nxd5 {[%emt 0:00:27]} 15. c3 {[%emt 0:00:53]} Bb7 {[%emt 0:01:50]} 16. a4 {[%emt 0:01:22]} Re8 {[%emt 0:01:55]} 17. axb5 {[%emt 0:01:29]} axb5 {[%emt 0:01:08]} 18. Nd4 {[%emt 0:01:01]} Qb6 {[%emt 0:03:40]} 19. Qd2 {[%emt 0:12:04]} e5 {[%emt 0:03:26]} 20. Nc2 {[%emt 0:01:12]} (20. Rxa8 {keeps fighting.} Bxa8 21. Nc2) 20... Rad8 {[%emt 0:00:35]} 21. Qc1 {[%emt 0:00:48]} Qc6 {[%emt 0:07:07]} 22. f3 {[%emt 0:04:40]} Bf8 {[%emt 0:03:15]} 23. Kh1 {[%emt 0:01:33]} Bc5 {[%emt 0:02:34]} 24. Rd1 {[%emt 0:05:07]} Qb6 {[%emt 0:05:10]} 25. Qg5 {[%emt 0:03:29]} f6 {[%emt 0:00:57]} 26. Qh6 {[%emt 0:01:17]} Ne7 {[%emt 0:06:02]} 27. Qh4 {[%emt 0:02:59]} Nf5 {[%emt 0:02:02]} 28. Qe1 {[%emt 0:00:34]} h5 $19 {[%emt 0:04:35]} 29. g4 {[%emt 0:02:46]} hxg4 {[%emt 0:01:33]} 30. hxg4 {[%emt 0:00:20]} Bf2 {[%emt 0:03:15]} 31. Qf1 {[%emt 0:00:04]} Nh4 {[%emt 0:00:49]} 32. Qh3 {[%emt 0:00:44]} Rd3 {[%emt 0:01:35]} 33. Ne1 {[%emt 0:01:36]} Bxe1 {[%emt 0:01:34]} 0-1

[Event "Gibraltar Challengers B 2019"]
[Site "Caleta"]
[Date "2019.01.27"]
[Round "2"]
[White "Garcia Lopez, Juan Antonio"]
[Black "Nikolaidis, Konstantinos"]
[Result "0-1"]
[ECO "B55"]
[WhiteElo "1964"]
[BlackElo "2167"]
[Annotator "ChessBase"]
[PlyCount "138"]
[EventDate "2019.01.18"]
[EventType "swiss"]
[EventCountry "GGB"]
[SourceTitle "playchess.com"]
[Source "ChessBase"]
[SourceQuality "1"]
[TimeControl "6600+10"]

1. e4 {[%emt 0:00:05]} c5 {[%emt 0:00:41]} 2. Nf3 {[%emt 0:00:08]} d6 {[%emt 0:00:24]} 3. d4 {[%emt 0:00:10]} cxd4 {[%emt 0:00:07]} 4. Nxd4 {[%emt 0:00:05]} Nf6 {[%emt 0:00:24]} 5. Bd3 {[%emt 0:01:28]} g6 {[%emt 0:06:04]} 6. c4 {[%emt 0:00:44]} Bg7 {[%emt 0:00:41]} 7. Nc3 {[%emt 0:00:55]} Nc6 {[%emt 0:01:56]} 8. Nc2 {[%emt 0:02:19]} Bd7 {[%emt 0:03:54]} 9. O-O {[%emt 0:00:19]} O-O {[%emt 0:01:40]} 10. h3 {[%emt 0:07:33]} Ne5 {[%emt 0:04:57]} 11. f4 {[%emt 0:01:21]} Nxd3 {[%emt 0:01:39]} 12. Qxd3 {[%emt 0:00:05]} Bc6 {[%emt 0:01:10]} 13. Rb1 {[%emt 0:02:19]} b6 {[%emt 0:02:41]} 14. Nd4 {[%emt 0:09:49]} Bb7 {[%emt 0:01:16]} 15. Be3 {[%emt 0:02:23]} a6 {[%emt 0:05:50]} 16. Nd5 {[%emt 0:11:02]} Nd7 {[%emt 0:02:57]} 17. b4 {[%emt 0:05:29]} Rc8 {[%emt 0:01:47]} 18. Rfc1 {[%emt 0:00:33]} e6 {[%emt 0:06:39]} 19. Nc3 {[%emt 0:00:29]} Ne5 {[%emt 0:04:15]} 20. fxe5 {[%emt 0:04:59]} dxe5 {[%emt 0:00:19]} 21. Rd1 {[%emt 0:00:37]} exd4 {[%emt 0:00:57]} 22. Bxd4 {[%emt 0:00:13]} e5 {[%emt 0:12:45]} 23. Bf2 {[%emt 0:00:25]} Qxd3 {[%emt 0:00:35]} 24. Rxd3 {[%emt 0:00:03]} Rxc4 {[%emt 0:00:34]} 25. Bxb6 {[%emt 0:00:45]} f5 {[%emt 0:01:56]} 26. Nd5 {[%emt 0:03:17]} Rxe4 {[%emt 0:03:21]} 27. Ne7+ {[%emt 0:00:17]} Kh8 {[%emt 0:01:47]} 28. Rd7 {[%emt 0:00:50]} Ba8 {[%emt 0:01:35]} 29. Rc1 {[%emt 0:04:46]} Rxb4 {[%emt 0:03:01]} 30. Nc8 {[%emt 0:02:01]} e4 {[%emt 0:11:56]} 31. Rcc7 {[%emt 0:00:43]} Be5 {[%emt 0:01:14]} 32. Rxh7+ {[%emt 0:02:16]} Kg8 {[%emt 0:00:03]} 33. Bc5 {[%emt 0:04:31]} Rb1+ {[%emt 0:01:47]} 34. Kf2 {[%emt 0:00:01]} Rb2+ {[%emt 0:00:52]} 35. Kf1 {[%emt 0:01:05]} Rb1+ {[%emt 0:02:17]} 36. Kf2 {[%emt 0:00:05]} Rb2+ {[%emt 0:00:25]} 37. Kf1 {[%emt 0:00:33]} Bxc7 {[%emt 0:08:07]} 38. Rxc7 {[%emt 0:00:10]} Rb7 {[%emt 0:01:40]} 39. Rxb7 {[%emt 0:01:40]} Bxb7 {[%emt 0:00:37]} 40. Bxf8 {[%emt 0:00:15]} Kxf8 {[%emt 0:00:02]} 41. Nb6 {[%emt 0:00:40]} Ke7 {[%emt 0:02:42]} 42. Kf2 {[%emt 0:00:31]} Kd6 {[%emt 0:00:48]} 43. Ke3 {[%emt 0:00:07]} g5 {[%emt 0:00:50]} 44. g3 {[%emt 0:00:02]} Bd5 {[%emt 0:02:42]} 45. a3 {[%emt 0:00:39]} Bb3 {[%emt 0:01:10]} 46. Kd4 {[%emt 0:00:28]} Kc7 {[%emt 0:00:27]} 47. Nc4 {[%emt 0:01:29]} Bxc4 {[%emt 0:00:44]} 48. Kxc4 {[%emt 0:00:01]} f4 {[%emt 0:00:35]} 49. gxf4 {[%emt 0:05:59]} gxf4 {[%emt 0:00:07]} 50. Kd4 {[%emt 0:00:54]} e3 {[%emt 0:00:08]} 51. Kd3 {[%emt 0:00:14]} Kd6 {[%emt 0:00:08]} 52. Ke2 {[%emt 0:00:55]} Ke5 {[%emt 0:00:16]} 53. Kf3 {[%emt 0:00:01]} Kf5 {[%emt 0:00:14]} 54. a4 {[%emt 0:04:06]} Kg5 {[%emt 0:00:22]} 55. Kg2 {[%emt 0:03:47]} a5 {[%emt 0:00:14]} 56. Kf3 {[%emt 0:08:42]} Kh4 {[%emt 0:00:22]} 57. Kg2 {[%emt 0:01:18]} e2 {[%emt 0:00:18]} 58. Kf2 {[%emt 0:01:45]} f3 {[%emt 0:00:07]} 59. Ke1 {[%emt 0:01:11]} Kxh3 {[%emt 0:00:09]} 60. Kf2 {[%emt 0:00:54]} Kh2 {[%emt 0:00:09]} 61. Ke1 {[%emt 0:00:35]} Kg1 {[%emt 0:00:10]} 62. Kd2 {[%emt 0:00:42]} Kf1 {[%emt 0:00:09]} 63. Ke3 {[%emt 0:01:36]} f2 {[%emt 0:00:06]} 64. Kd4 {[%emt 0:00:37]} e1=Q {[%emt 0:00:12]} 65. Kc5 {[%emt 0:00:16]} Kg2 {[%emt 0:00:20]} 66. Kd5 {[%emt 0:00:22]} f1=Q {[%emt 0:00:19]} 67. Kd6 {[%emt 0:00:36]} Qc4 {[%emt 0:00:19]} 68. Kd7 {[%emt 0:01:18]} Qee6+ {[%emt 0:00:09]} 69. Kd8 {[%emt 0:00:36]} Qcc8# {[%emt 0:00:06]} 0-1

[Event "Gibraltar Challengers B 2019"]
[Site "Caleta"]
[Date "2019.01.27"]
[Round "2"]
[White "Lutz, Juergen"]
[Black "Schouten, Freek"]
[Result "0-1"]
[ECO "B07"]
[WhiteElo "1960"]
[BlackElo "2087"]
[Annotator "NA"]
[PlyCount "52"]
[EventDate "2019.01.18"]
[EventType "swiss"]
[EventCountry "GGB"]
[SourceTitle "playchess.com"]
[Source "ChessBase"]
[SourceQuality "1"]
[TimeControl "6600+10"]

1. e4 {[%emt 0:08:48]} g6 {[%emt 0:00:08]} 2. d4 {[%emt 0:00:26]} Bg7 {[%emt 0:00:05]} 3. Nc3 {[%emt 0:00:24]} d6 {[%emt 0:00:11]} 4. Bc4 {[%emt 0:00:14]} Nf6 {[%emt 0:04:39]} 5. Qe2 {[%emt 0:00:07]} O-O {[%emt 0:06:24]} 6. e5 {[%emt 0:00:07]} Nfd7 {[%emt 0:10:33]} 7. e6 {[%emt 0:05:57] B07: Pirc Defence: Miscellaneous Systems} Nb6 {[%emt 0:00:51]} 8. exf7+ {[%emt 0:00:08]} Kh8 {[%emt 0:00:10]} 9. h4 {[%emt 0:19:47]} (9. Nf3 $16) 9... Nxc4 $146 {[%emt 0:35:25]} ({Predecessor:} 9... Nc6 10. h5 g5 11. Nf3 Nxc4 12. Qxc4 h6 13. d5 Na5 14. Qa4 c6 {0-1 (41) Collas,D (2416)-Shchekachev,A (2555) Bogny sur Meuse 2002}) 10. h5 {[%emt 0:00:57]} Bf5 {[%emt 0:09:11]} 11. g4 {[%emt 0:13:57]} Nc6 $2 {[%emt 0:06:42]} (11... d5 $14) 12. gxf5 {[%emt 0:05:06]} gxf5 {[%emt 0:00:50]} 13. Qxc4 {[%emt 0:04:59]} Nxd4 {[%emt 0:00:20]} 14. Bh6 {[%emt 0:19:29]} Bxh6 {[%emt 0:15:58]} 15. Qxd4+ {[%emt 0:00:08]} e5 {[%emt 0:00:06]} 16. Qd5 {[%emt 0:00:27]} Qe7 {[%emt 0:03:16]} 17. Qxb7 {[%emt 0:08:22]} Rab8 {[%emt 0:01:14]} 18. Qxa7 {[%emt 0:00:08]} Rxb2 {[%emt 0:00:52]} 19. Nge2 {[%emt 0:08:50]} Qxf7 {[%emt 0:03:25]} 20. Qa4 {[%emt 0:05:48]} Rfb8 {[%emt 0:03:57]} 21. a3 {[%emt 0:00:01]} d5 $1 {[%emt 0:05:23]} 22. Qc6 {[%emt 0:00:51]} R2b6 {[%emt 0:00:40]} 23. Qxd5 {[%emt 0:00:23]} Qxd5 {[%emt 0:00:11]} 24. Nxd5 {[%emt 0:00:01]} Rb1+ {[%emt 0:00:07]} 25. Nc1 {[%emt 0:01:49]} Rxa1 {[%emt 0:00:13]} 26. Ke2 $19 {[%emt 0:01:44]} Rxc1 {[%emt 0:00:14]} 0-1

[Event "Gibraltar Challengers B 2019"]
[Site "Caleta"]
[Date "2019.01.27"]
[Round "2"]
[White "James, Kevin"]
[Black "Suez-Panama, Gilles"]
[Result "1-0"]
[ECO "E76"]
[WhiteElo "1948"]
[BlackElo "2078"]
[Annotator "NA"]
[PlyCount "77"]
[EventDate "2019.01.18"]
[EventType "swiss"]
[EventCountry "GGB"]
[SourceTitle "playchess.com"]
[Source "ChessBase"]
[SourceQuality "1"]
[TimeControl "6600+10"]

1. d4 {[%emt 0:00:00]} Nf6 {[%emt 0:06:38]} 2. c4 {[%emt 0:00:00]} g6 {[%emt 0:00:05]} 3. Nc3 {[%emt 0:00:04]} Bg7 {[%emt 0:00:03]} 4. e4 {[%emt 0:00:07]} d6 {[%emt 0:00:03]} 5. f4 {[%emt 0:00:11]} O-O {[%emt 0:00:40]} 6. Nf3 {[%emt 0:00:11]} Na6 {[%emt 0:00:11]} 7. Be2 {[%emt 0:00:27]} e5 {[%emt 0:05:35]} 8. fxe5 {[%emt 0:00:36]} dxe5 {[%emt 0:00:07]} 9. Nxe5 {[%emt 0:00:24] LiveBook: 24 Games E76: King's Indian: Four Pawns Attack: Lines specific to 6 Nf3 move-order} (9. d5 Nc5 10. Bg5 h6 11. Bxf6 Qxf6 12. b4 Nd7 13. a3 a5 14. c5 Qe7 15. Rc1 axb4 16. axb4 b6 17. d6 cxd6 18. Nd5 Qd8 19. c6 Nf6 20. c7 Qe8 21. Nxb6 {1-0 (31) Nguyen,N (2625)-Guseinov,G (2631) Khanty-Mansiysk 2013}) 9... c5 {[%emt 0:00:13]} 10. Be3 {[%emt 0:00:24]} cxd4 {[%emt 0:06:54]} 11. Bxd4 {[%emt 0:00:22]} Qa5 {[%emt 0:06:04]} 12. Nf3 $146 {[%emt 0:05:31]} ({Predecessor:} 12. O-O Be6 13. Nd3 Bxc4 14. Kh1 Qg5 15. Rf3 Rad8 16. Qg1 Rfe8 {1-0 (40) Byklum,B (2252)-Sagafos,M (2430) Norway 2012}) 12... Bg4 {[%emt 0:09:30]} 13. O-O {[%emt 0:03:08]} Rad8 {[%emt 0:04:51] [#]} ({Black should try} 13... Nc7) 14. Nd5 $1 {[%emt 0:04:38]} Nxd5 {[%emt 0:01:17]} 15. exd5 {[%emt 0:00:57]} Bxd4+ {[%emt 0:03:05]} 16. Qxd4 {[%emt 0:00:42]} Bxf3 {[%emt 0:01:26]} 17. Rxf3 {[%emt 0:01:03]} Qc5 {[%emt 0:02:48]} 18. Qxc5 {[%emt 0:02:57]} Nxc5 {[%emt 0:00:06]} 19. b4 {[%emt 0:00:31]} Ne4 {[%emt 0:00:54]} 20. Rd1 {[%emt 0:00:34]} b6 {[%emt 0:00:32]} 21. Rd4 {[%emt 0:02:06]} f5 {[%emt 0:01:08]} 22. Bd1 {[%emt 0:02:48]} Rfe8 {[%emt 0:03:32] [#]} 23. Re3 {[%emt 0:08:56]} ({White should try} 23. g4 $1 $18 {[%mdl 512]}) 23... Kf7 {[%emt 0:00:49]} 24. Bf3 {[%emt 0:04:18]} Ng5 {[%emt 0:01:56]} 25. Rxe8 {[%emt 0:02:51]} Nxf3+ {[%emt 0:00:25]} 26. gxf3 {[%emt 0:00:08]} Kxe8 {[%emt 0:01:48]} 27. Kf2 {[%emt 0:01:30]} Rc8 {[%emt 0:00:24]} 28. Ke3 {[%emt 0:00:33]} g5 {[%emt 0:00:08]} 29. Kd3 {[%emt 0:09:05]} Kd7 {[%emt 0:00:20]} 30. Kc3 {[%emt 0:00:06]} Kd6 {[%emt 0:00:11]} 31. Rd3 {[%emt 0:00:20]} f4 {[%emt 0:01:56]} 32. Kd4 {[%emt 0:00:37]} Rc7 $2 {[%emt 0:01:10]} (32... Kc7 33. c5 Ra8 34. d6+ Kc6) 33. Rc3 {[%emt 0:00:25]} h5 {[%emt 0:00:19]} 34. c5+ {[%emt 0:00:20]} bxc5+ {[%emt 0:00:15]} 35. bxc5+ {[%emt 0:00:21]} Kd7 {[%emt 0:00:11]} 36. Ke5 {[%emt 0:00:33]} Rc8 {[%emt 0:00:50]} 37. c6+ {[%emt 0:00:55]} Ke7 {[%emt 0:00:16]} 38. d6+ {[%emt 0:00:23]} Ke8 {[%emt 0:00:03]} 39. d7+ {[%emt 0:00:28] Double Attack} 1-0